bitfinex-derivatives/quotes_BTCF0:USTF0_20241116
["timestamp","ask_amount","ask_price","bid_price","bid_amount"]
[1731737932771,0.0051,91353.0,91352.0,0.46450559]
[1731737932974,0.00358,91369.0,91365.0,0.10370559]
[1731737933176,0.00358,91369.0,91365.0,0.19378559]
[1731737933568,8.672e-05,91368.0,91365.0,0.19378559]
[1731737934982,8.672e-05,91368.0,91367.0,8.688e-05]
[1731737940876,0.03068672,91368.0,91367.0,8.688e-05]
[1731737942281,0.39148672,91368.0,91367.0,8.688e-05]
[1731737942483,0.42328672,91368.0,91367.0,8.688e-05]
[1731737942877,0.47258964,91368.0,91367.0,8.688e-05]
[1731737944080,0.47258964,91368.0,91367.0,4.27e-06]
[1731737944984,0.80094964,91368.0,91367.0,4.27e-06]
[1731737951280,0.90465523,91368.0,91340.0,0.088]
[1731737951586,0.3608,91347.0,91346.0,0.0051]
[1731737951780,0.3608,91347.0,91340.0,0.088]
[1731737952382,0.3608,91347.0,91337.0,0.0051]
[1731737953295,0.13008799,91365.0,91344.0,0.10370559]
[1731737953588,0.36144673,91368.0,91362.0,0.3608]
[1731737953786,0.36088672,91368.0,91367.0,0.10370559]
[1731737955291,0.36088672,91368.0,91367.0,0.15206749]
[1731737955592,8.672e-05,91368.0,91367.0,0.15206749]
[1731737955786,8.672e-05,91368.0,91367.0,0.10370559]
[1731737955992,8.672e-05,91368.0,91367.0,0.088]
[1731737959081,8.672e-05,91368.0,91367.0,0.19170559]
[1731737959288,8.672e-05,91368.0,91367.0,0.22410559]
[1731737960789,0.3608,91386.0,91367.0,0.62732329]
[1731737960995,0.3608,91386.0,91385.0,0.10370559]
[1731737961892,0.00012248,91386.0,91385.0,0.10370559]
[1731737962397,0.00012248,91386.0,91385.0,0.33018206]
[1731737963297,0.00012248,91386.0,91385.0,0.13410559]
[1731737964089,0.033,91413.0,91385.0,0.51102335]
[1731737964090,0.13008799,91412.0,91385.0,0.51102335]
[1731737964284,0.13008799,91415.0,91402.0,0.10370559]
[1731737964491,0.13008799,91416.0,91411.0,0.10370559]
[1731737964686,0.0306,91417.0,91411.0,0.10370559]
[1731737965198,0.3608,91421.0,91411.0,0.10370559]
[1731737965199,0.00013759,91413.0,91411.0,0.10370559]
[1731737966302,0.00013759,91413.0,91412.0,0.3608]
[1731737966489,0.3608,91431.0,91412.0,0.3608]
[1731737966693,0.3608,91431.0,91422.0,0.10370559]
[1731737966891,0.3608,91431.0,91413.0,0.08796]
[1731737967501,8.16e-05,91418.0,91412.0,0.51520751]
[1731737967697,8.16e-05,91418.0,91414.0,0.08796]
[1731737978031,8.16e-05,91418.0,91415.0,0.0319]
[1731737978622,0.0325,91441.0,91417.0,0.10370559]
[1731737978818,0.0325,91441.0,91415.0,0.0319]
[1731737978819,0.3608,91440.0,91439.0,0.10370559]
[1731737979018,0.3608,91440.0,91432.0,0.10370559]
[1731737979730,0.00013679,91439.0,91432.0,0.10370559]
[1731737984121,0.00013679,91439.0,91432.0,0.15200236]
[1731737984733,0.00013679,91439.0,91433.0,0.0311]
[1731737994245,0.13014468,91439.0,91433.0,0.0311]
[1731737995242,0.13000789,91438.0,91433.0,0.22671732]
[1731737996337,0.00013679,91439.0,91433.0,0.22671732]
[1731737996338,0.13000789,91437.0,91433.0,0.22671732]
[1731737997541,0.13000789,91437.0,91434.0,0.19561732]
[1731737998045,0.13000789,91437.0,91433.0,0.0311]
[1731737998236,0.13000789,91437.0,91433.0,0.22671732]
[1731737998436,0.13000789,91436.0,91433.0,0.22671732]
[1731737998832,0.13000789,91436.0,91433.0,0.0311]
[1731737999149,0.13000789,91436.0,91433.0,0.22671732]
[1731737999338,0.13000789,91436.0,91434.0,0.19561732]
[1731737999733,0.13000789,91435.0,91434.0,0.19561732]
[1731737999940,0.13000789,91436.0,91434.0,0.19561732]
[1731738000236,0.13000789,91435.0,91434.0,0.19561732]
[1731738000842,0.00013679,91439.0,91433.0,0.0311]
[1731738000843,0.13000789,91436.0,91433.0,0.0311]
[1731738001043,0.13000789,91436.0,91435.0,0.19654423]
[1731738001238,0.00013679,91439.0,91435.0,0.19654423]
[1731738001438,0.00013679,91439.0,91433.0,0.0311]
[1731738001439,0.13069551,91437.0,91434.0,0.19654423]
[1731738001750,0.13069551,91438.0,91435.0,0.01086499]
[1731738001949,0.1308323,91439.0,91436.0,0.20740922]
[1731738002140,0.00013679,91439.0,91437.0,0.20740922]
[1731738002348,0.1308323,91439.0,91438.0,0.01086499]
[1731738003040,0.00013679,91439.0,91438.0,0.01086499]
[1731738003242,0.1308323,91439.0,91438.0,0.20740922]
[1731738003548,0.00013679,91439.0,91438.0,0.01086499]
[1731738004550,0.00013679,91439.0,91438.0,0.27168809]
[1731738005257,0.00013679,91439.0,91438.0,0.01086499]
[1731738007150,0.13055872,91447.0,91438.0,0.13165739]
[1731738007353,0.36136001,91453.0,91446.0,0.19655874]
[1731738007649,0.3608,91453.0,91452.0,0.10370559]
[1731738007854,0.3608,91453.0,91452.0,0.12079161]
[1731738008047,0.3608,91453.0,91452.0,0.10370559]
[1731738008247,0.16250986,91456.0,91452.0,0.11474615]
[1731738008449,0.16250986,91456.0,91449.0,0.10370559]
[1731738008450,0.16250986,91457.0,91453.0,0.01104056]
[1731738008645,0.16250986,91457.0,91450.0,0.0318]
[1731738008646,0.16250986,91461.0,91456.0,0.46450559]
[1731738008848,0.52330986,91464.0,91460.0,0.10370559]
[1731738009149,0.16250986,91464.0,91461.0,0.09784056]
[1731738009352,0.00164054,91467.0,91462.0,0.01104056]
[1731738009550,0.00164054,91467.0,91465.0,0.3608]
[1731738009750,0.16250986,91469.0,91466.0,0.01114046]
[1731738010063,0.16250986,91476.0,91467.0,0.14654615]
[1731738010249,0.16250986,91477.0,91474.0,0.10370559]
[1731738010454,0.16250986,91483.0,91476.0,0.10370559]
[1731738010653,0.16250986,91484.0,91477.0,0.0868]
[1731738010845,0.16250986,91481.0,91477.0,0.0868]
[1731738011050,0.16250986,91483.0,91477.0,0.0868]
[1731738011355,0.0324,91494.0,91477.0,0.0868]
[1731738012950,0.0324,91494.0,91478.0,0.032]
[1731738013751,0.0324,91494.0,91493.0,0.10370559]
[1731738013957,0.3608,91499.0,91493.0,0.10370559]
[1731738014346,0.3608,91499.0,91493.0,0.15357646]
[1731738014762,0.3608,91499.0,91496.0,0.10370559]
[1731738016554,0.3608,91499.0,91496.0,0.15391551]
[1731738016761,0.3608,91499.0,91497.0,0.08676]
[1731738017957,0.3608,91499.0,91496.0,0.15391551]
[1731738018162,0.3608,91499.0,91497.0,0.08676]
[1731738019458,0.3608,91499.0,91496.0,0.1540436]
[1731738020971,0.3608,91498.0,91487.0,0.08676]
[1731738021155,0.3608,91488.0,91487.0,0.08676]
[1731738021355,0.3608,91488.0,91483.0,0.05010009]
[1731738021653,0.0606,91487.0,91481.0,0.02186113]
[1731738021854,0.0606,91487.0,91484.0,0.10370559]
[1731738022267,0.3608,91488.0,91484.0,0.10370559]
[1731738022663,0.3608,91488.0,91485.0,0.0317]
[1731738023055,0.3608,91488.0,91484.0,0.10370559]
[1731738023257,0.3608,91488.0,91485.0,0.08676]
[1731738023455,0.3608,91488.0,91484.0,0.19046559]
[1731738023857,0.3608,91488.0,91484.0,0.10370559]
[1731738024061,0.3608,91488.0,91485.0,0.08676]
[1731738028059,0.3608,91488.0,91477.0,0.15382046]
[1731738028268,0.3608,91480.0,91470.0,0.08676]
[1731738028469,0.0628,91479.0,91470.0,0.08676]
[1731738028659,0.0628,91479.0,91477.0,0.10370559]
[1731738036177,0.00056001,91497.0,91478.0,0.26210829]
[1731738036368,0.0305,91496.0,91495.0,0.10370559]
[1731738037792,0.0305,91496.0,91495.0,0.15242258]
[1731738040279,0.3608,91499.0,91495.0,0.15242258]
[1731738041975,0.3608,91499.0,91498.0,0.19625896]
[1731738042972,0.3608,91499.0,91497.0,0.19625896]
[1731738043368,0.3608,91499.0,91495.0,0.34868154]
[1731738043574,0.3608,91499.0,91495.0,0.15242258]
[1731738043769,0.3608,91499.0,91494.0,0.19625896]
[1731738043972,0.3608,91498.0,91495.0,0.19625896]
[1731738044182,0.32788,91497.0,91491.0,0.19625896]
[1731738044382,0.3608,91498.0,91490.0,0.19625896]
[1731738044579,0.0319,91496.0,91486.0,0.19625896]
[1731738044881,0.3608,91487.0,91486.0,0.19625896]
[1731738045179,0.3608,91487.0,91483.0,0.36581388]
[1731738045383,0.3608,91487.0,91484.0,0.26210829]
[1731738045879,0.3608,91487.0,91483.0,0.26210829]
[1731738046180,0.3608,91487.0,91485.0,0.19628873]
[1731738046371,0.3608,91487.0,91486.0,0.19628873]
[1731738046572,0.3608,91487.0,91483.0,0.36581388]
[1731738046776,0.3608,91487.0,91484.0,0.26210829]
[1731738047083,0.0312,91495.0,91484.0,0.26210829]
[1731738047283,0.0319,91496.0,91494.0,0.10370559]
[1731738047678,0.0319,91496.0,91494.0,0.2999897]
[1731738048485,0.0319,91496.0,91495.0,0.19628411]
[1731738048873,0.3927,91496.0,91495.0,0.19628411]
[1731738050082,0.3927,91496.0,91494.0,0.10370559]
[1731738050284,0.3927,91496.0,91485.0,0.09214]
[1731738050285,0.3927,91496.0,91493.0,0.26210829]
[1731738050474,0.3927,91496.0,91491.0,0.26210829]
[1731738050783,0.3927,91496.0,91490.0,0.26210829]
[1731738050983,0.3927,91496.0,91495.0,0.19631491]
[1731738051174,0.3927,91496.0,91494.0,0.19631491]
[1731738051373,0.72058,91496.0,91490.0,0.19631491]
[1731738051573,0.3927,91496.0,91488.0,0.19631491]
[1731738051773,0.3927,91496.0,91485.0,0.0051]
[1731738051774,0.3927,91496.0,91487.0,0.19631491]
[1731738051972,0.3608,91488.0,91485.0,0.20141491]
[1731738052275,0.3608,91488.0,91479.0,0.05007666]
[1731738052276,0.3608,91488.0,91483.0,0.19631491]
[1731738052470,0.3608,91488.0,91484.0,0.10370559]
[1731738052982,0.3608,91488.0,91486.0,0.26175639]
[1731738053177,0.3608,91488.0,91487.0,0.0329]
[1731738053370,0.3608,91488.0,91487.0,0.29465671]
[1731738054480,0.3608,91488.0,91485.0,0.26175727]
[1731738054686,0.3608,91488.0,91482.0,0.26175727]
[1731738054687,0.031,91487.0,91482.0,0.26175727]
[1731738055573,0.031,91487.0,91485.0,0.19631975]
[1731738055769,0.031,91487.0,91477.0,0.15368453]
[1731738055770,0.031,91487.0,91483.0,0.26175727]
[1731738056376,0.031,91487.0,91486.0,0.19631978]
[1731738058486,0.031,91487.0,91477.0,0.37600781]
[1731738058487,0.031,91487.0,91483.0,0.26175727]
[1731738059289,0.031,91487.0,91484.0,0.26175727]
[1731738060089,0.031,91487.0,91481.0,0.32602887]
[1731738060772,0.031,91487.0,91481.0,0.37594553]
[1731738061875,0.031,91487.0,91481.0,0.32602887]
[1731738062081,0.031,91487.0,91484.0,0.26181602]
[1731738062281,0.031,91487.0,91482.0,0.26181602]
[1731738062479,0.031,91487.0,91485.0,0.19638831]
[1731738063072,0.031,91487.0,91486.0,0.19638831]
[1731738063277,0.031,91487.0,91486.0,0.26181602]
[1731738063683,0.031,91487.0,91480.0,0.32602887]
[1731738064083,0.031,91487.0,91485.0,0.26183407]
[1731738064295,0.031,91487.0,91486.0,0.26183407]
[1731738064981,0.031,91487.0,91480.0,0.32602887]
[1731738065387,0.031,91487.0,91481.0,0.32602887]
[1731738065686,0.031,91487.0,91483.0,0.26186566]
[1731738065889,0.3608,91484.0,91482.0,0.26186566]
[1731738066189,0.3608,91484.0,91474.0,0.00163948]
[1731738066190,0.3608,91484.0,91483.0,0.10370559]
[1731738066579,0.3608,91484.0,91483.0,0.36557125]
[1731738066978,0.3608,91484.0,91483.0,0.36554353]
[1731738067178,0.3608,91484.0,91483.0,0.10370559]
[1731738067578,0.3608,91484.0,91478.0,0.32602887]
[1731738069395,0.3608,91484.0,91480.0,0.32602887]
[1731738069590,0.3608,91484.0,91479.0,0.32602887]
[1731738072199,0.10370559,91480.0,91476.0,0.32602887]
[1731738072386,0.3608,91477.0,91473.0,0.0051]
[1731738072586,0.3608,91477.0,91468.0,0.20162331]
[1731738072587,0.13045119,91476.0,91468.0,0.20162331]
[1731738072792,0.3608,91469.0,91466.0,0.19662321]
[1731738072993,0.3608,91469.0,91468.0,0.19652331]
[1731738073186,0.3608,91469.0,91468.0,0.19640345]
[1731738073393,0.3608,91469.0,91466.0,9.99e-05]
[1731738073600,0.3608,91469.0,91467.0,0.1963439]
[1731738073789,0.3608,91469.0,91468.0,0.1963439]
[1731738074588,0.3608,91469.0,91467.0,0.1963439]
[1731738075089,0.3608,91469.0,91466.0,9.99e-05]
[1731738077593,0.032,91468.0,91466.0,9.99e-05]
[1731738078709,0.032,91468.0,91466.0,1.0000999]
[1731738079395,0.36,91468.0,91466.0,1.0000999]
[1731738079599,0.328,91467.0,91466.0,1.0000999]
[1731738079992,0.328,91467.0,91466.0,0.83607108]
[1731738080195,0.628,91467.0,91466.0,0.83607108]
[1731738080496,0.75845119,91467.0,91466.0,0.77910808]
[1731738080695,0.628,91467.0,91466.0,0.77910808]
[1731738080893,0.6280999,91467.0,91466.0,0.77910808]
[1731738081097,0.6280999,91467.0,91466.0,0.54943441]
[1731738081805,0.3280999,91467.0,91466.0,0.54943441]
[1731738082993,9.99e-05,91467.0,91466.0,0.54943441]
[1731738083201,0.0868199,91467.0,91466.0,0.54943441]
[1731738083403,9.99e-05,91467.0,91466.0,0.54943441]
[1731738090607,0.4148199,91467.0,91466.0,0.54943441]
[1731738091599,0.4148199,91467.0,91466.0,0.49148041]
[1731738092000,0.7148199,91467.0,91466.0,0.37066241]
[1731738092204,0.328,91466.0,91458.0,1e-06]
[1731738092407,0.46450559,91459.0,91458.0,1e-06]
[1731738092805,0.79250559,91459.0,91458.0,1e-06]
[1731738093206,1.09250559,91459.0,91458.0,1e-06]
[1731738095509,1.09250559,91459.0,91458.0,0.929736]
[1731738095709,1.09250559,91459.0,91458.0,0.78462]
[1731738096010,1.09250559,91459.0,91458.0,0.652932]
[1731738097117,1.09250559,91459.0,91458.0,0.597509]
[1731738098618,1.09250559,91459.0,91458.0,0.53653]
[1731738098818,1.09250559,91459.0,91458.0,0.47967]
[1731738101510,1.25501545,91459.0,91458.0,0.47967]
[1731738101715,1.09250559,91459.0,91458.0,0.47967]
[1731738101923,0.79250559,91459.0,91458.0,0.47967]
[1731738102119,0.95516772,91459.0,91458.0,0.47967]
[1731738102421,1.14566999,91459.0,91458.0,0.415511]
[1731738102614,1.16754564,91459.0,91431.0,0.0327]
[1731738102815,0.7216,91439.0,91431.0,0.0327]
[1731738106239,0.18958559,91442.0,91431.0,0.0327]
[1731738106436,0.7216,91439.0,91431.0,0.0327]
[1731738113650,0.7216,91439.0,91436.0,0.10370559]
[1731738113837,0.7216,91439.0,91431.0,0.0327]
[1731738114542,0.7216,91439.0,91431.0,0.2290439]
[1731738114731,0.7216,91439.0,91438.0,1.00010727]
[1731738116347,0.7216,91439.0,91438.0,1.01719672]
[1731738116647,0.7216,91439.0,91438.0,1.21354062]
[1731738116837,0.7216,91439.0,91438.0,1.01719672]
[1731738117140,0.7216,91439.0,91438.0,1.00010727]
[1731738118748,0.7216,91439.0,91438.0,1.01719784]
[1731738118942,0.7216,91439.0,91438.0,1.00010727]
[1731738119142,0.7216,91439.0,91438.0,1.01719794]
[1731738121248,0.7216,91439.0,91438.0,1.00010727]
[1731738122049,0.7216,91439.0,91438.0,1.10381286]
[1731738122242,0.7216,91439.0,91438.0,1.75480442]
[1731738122445,0.7216,91439.0,91438.0,1.10381286]
[1731738122646,0.7216,91439.0,91438.0,1.42880046]
[1731738123752,0.0051,91447.0,91438.0,1.43963826]
[1731738124051,0.0051,91447.0,91441.0,0.327806]
[1731738124250,0.3608,91442.0,91441.0,0.327806]
[1731738124651,0.3608,91442.0,91441.0,0.65204938]
[1731738125143,0.3608,91442.0,91441.0,0.65202135]
[1731738125458,0.3608,91442.0,91440.0,0.32777797]
[1731738125948,0.3608,91442.0,91441.0,0.32417912]
[1731738126148,0.3608,91442.0,91441.0,0.65192925]
[1731738126350,0.3608,91442.0,91441.0,0.32775013]
[1731738126543,0.3608,91442.0,91439.0,0.0312]
[1731738126544,0.3608,91442.0,91440.0,0.32775013]
[1731738126753,0.3608,91442.0,91441.0,0.32407938]
[1731738127149,0.3608,91442.0,91439.0,0.0312]
[1731738128558,0.3608,91442.0,91438.0,1.00134727]
[1731738128854,0.3608,91442.0,91438.0,1.00010727]
[1731738129663,0.3608,91442.0,91441.0,0.19661716]
[1731738129864,0.3608,91442.0,91440.0,0.19661716]
[1731738130154,0.3608,91441.0,91438.0,1.19800443]
[1731738130345,0.3608,91441.0,91438.0,1.00010727]
[1731738130548,0.3608,91441.0,91439.0,0.19661716]
[1731738131155,0.3608,91441.0,91438.0,1.00138727]
[1731738131459,0.3608,91441.0,91438.0,1.00010727]
[1731738131845,0.08548,91440.0,91438.0,1.00010727]
[1731738132054,0.16265014,91439.0,91438.0,1.00010727]
[1731738132250,0.05316785,91439.0,91438.0,1.00010727]
[1731738132644,0.05316785,91439.0,91438.0,0.00010727]
[1731738133453,0.14988,91440.0,91438.0,0.00010727]
[1731738134049,0.16344679,91439.0,91438.0,0.00010727]
[1731738134259,0.1307642,91439.0,91438.0,0.00010727]
[1731738134562,0.3608,91441.0,91438.0,0.00010727]
[1731738135552,0.3608,91441.0,91440.0,0.26208347]
[1731738136359,0.3608,91441.0,91439.0,0.26208347]
[1731738137453,0.3608,91441.0,91440.0,1.0]
[1731738138271,0.394,91441.0,91440.0,1.0]
[1731738138763,0.44231009,91441.0,91440.0,1.0]
[1731738143366,0.77039009,91441.0,91440.0,1.0]
[1731738144558,0.77039009,91441.0,91440.0,0.94519]
[1731738144865,0.77039009,91441.0,91440.0,0.884915]
[1731738145066,0.32808,91440.0,91432.0,0.0051]
[1731738145269,0.46450559,91433.0,91432.0,0.0051]
[1731738145464,0.46450559,91433.0,91425.0,0.0051]
[1731738145662,0.3608,91426.0,91419.0,0.00674055]
[1731738145969,0.3608,91420.0,91419.0,0.00674055]
[1731738146171,0.3608,91420.0,91419.0,0.00164055]
[1731738147375,0.36094219,91420.0,91419.0,0.00164055]
[1731738155365,0.49127522,91420.0,91419.0,0.00164055]
[1731738155565,0.39424219,91420.0,91419.0,0.00164055]
[1731738156879,0.72240219,91420.0,91419.0,0.00164055]
[1731738158762,0.39424219,91420.0,91419.0,0.00164055]
[1731738158966,0.36094219,91420.0,91419.0,0.00164055]
[1731738159169,0.49135653,91420.0,91419.0,0.00164055]
[1731738159364,0.36094219,91420.0,91419.0,0.00164055]
[1731738160276,0.49137965,91420.0,91419.0,0.00164055]
[1731738160468,0.36094219,91420.0,91419.0,0.00164055]
[1731738161471,0.49142953,91420.0,91419.0,0.00164055]
[1731738161665,0.36094219,91420.0,91419.0,0.00164055]
[1731738162370,0.68910219,91420.0,91412.0,0.0051]
[1731738162576,0.46450559,91413.0,91412.0,0.0051]
[1731738162781,0.55090559,91413.0,91405.0,0.0051]
[1731738162977,0.3608,91406.0,91405.0,0.0051]
[1731738163181,0.3608,91406.0,91404.0,0.00010139]
[1731738166080,0.10370559,91405.0,91404.0,0.00010139]
[1731738166984,0.26683831,91405.0,91404.0,0.00010139]
[1731738167183,0.15689648,91405.0,91404.0,1.199e-05]
[1731738167570,0.35265575,91405.0,91404.0,1.199e-05]
[1731738167775,0.35288409,91405.0,91404.0,1.199e-05]
[1731738167979,0.15689648,91405.0,91404.0,1.199e-05]
[1731738171180,0.35288409,91405.0,91404.0,1.199e-05]
[1731738171486,0.48509648,91405.0,91404.0,1.199e-05]
[1731738172188,0.48509648,91405.0,91398.0,0.0051]
[1731738172383,0.3608,91399.0,91398.0,0.0051]
[1731738172584,0.5003983,91399.0,91391.0,0.0051]
[1731738172790,0.10370559,91386.0,91384.0,0.0051]
[1731738172991,0.19010559,91386.0,91383.0,0.0634]
[1731738178189,0.23935151,91386.0,91383.0,0.0634]
[1731738179893,0.7216,91384.0,91383.0,0.0634]
[1731738181295,0.808,91384.0,91383.0,0.0634]
[1731738184800,0.7216,91384.0,91383.0,0.0634]
[1731738186897,0.3608,91384.0,91383.0,0.0634]
[1731738193704,0.49135916,91384.0,91383.0,0.0634]
[1731738194613,0.3608,91384.0,91380.0,0.19631278]
[1731738194810,0.3608,91384.0,91378.0,0.0051]
[1731738194811,0.06791315,91381.0,91378.0,0.0051]
[1731738195003,0.0001282,91380.0,91378.0,0.0051]
[1731738197307,0.0001282,91380.0,91375.0,0.0051]
[1731738197508,0.42871315,91376.0,91375.0,0.0051]
[1731738197905,0.51515315,91376.0,91375.0,0.0051]
[1731738198411,0.64584487,91376.0,91375.0,0.0051]
[1731738199211,0.69440069,91376.0,91375.0,0.0051]
[1731738199417,0.56370897,91376.0,91375.0,0.0051]
[1731738202309,0.61691413,91376.0,91375.0,0.00047075]
[1731738204811,0.46256098,91376.0,91375.0,0.00047075]
[1731738205005,0.52421529,91376.0,91375.0,0.00047075]
[1731738205213,0.3608,91376.0,91375.0,0.32879075]
[1731738205518,0.261,91376.0,91375.0,0.32879075]
[1731738207100,0.261,91376.0,91375.0,0.00047075]
[1731738208307,0.261,91376.0,91375.0,0.04923818]
[1731738209511,0.36448028,91376.0,91375.0,0.00047075]
[1731738209705,0.49523177,91376.0,91375.0,0.00047075]
[1731738209910,0.36448028,91376.0,91375.0,0.00047075]
[1731738210599,0.261,91376.0,91375.0,0.00047075]
[1731738213103,0.3608,91376.0,91375.0,0.00047075]
[1731738216015,0.3608,91377.0,91375.0,0.00047075]
[1731738217611,0.3608,91377.0,91375.0,0.26262012]
[1731738218213,0.3608,91377.0,91375.0,0.00047075]
[1731738218421,0.10348028,91376.0,91375.0,0.19708755]
[1731738218617,0.23419576,91376.0,91375.0,0.00047075]
[1731738219117,0.10348028,91376.0,91375.0,0.00047075]
[1731738220213,0.49150993,91377.0,91375.0,0.00047075]
[1731738220414,0.3608,91377.0,91375.0,0.00047075]
[1731738222311,0.3608,91377.0,91373.0,0.1966168]
[1731738222512,0.49150993,91377.0,91373.0,0.1966168]
[1731738223024,0.49150993,91377.0,91371.0,0.26214937]
[1731738224210,0.3608,91377.0,91372.0,0.26214937]
[1731738224430,0.0051,91374.0,91372.0,0.26214937]
[1731738226314,0.0051,91374.0,91371.0,0.26214937]
[1731738226514,0.0051,91374.0,91365.0,0.32719134]
[1731738226515,0.0051,91374.0,91372.0,0.26214937]
[1731738227420,0.0051,91374.0,91373.0,0.26214937]
[1731738230426,0.0051,91374.0,91367.0,0.32719134]
[1731738230629,0.0051,91374.0,91373.0,0.26230726]
[1731738230825,0.07302735,91374.0,91373.0,0.26230726]
[1731738231023,0.0051,91374.0,91372.0,0.19673543]
[1731738231325,0.13342735,91373.0,91372.0,0.19675009]
[1731738232032,0.2013547,91373.0,91369.0,0.19675238]
[1731738232333,0.13084803,91370.0,91367.0,0.19675238]
[1731738232522,0.42872735,91368.0,91366.0,0.19675238]
[1731738232829,0.5818147,91368.0,91366.0,0.19675238]
[1731738234029,0.71266273,91368.0,91363.0,0.26230726]
[1731738234340,0.5818147,91368.0,91362.0,0.26230726]
[1731738234521,0.06792735,91363.0,91362.0,0.26230726]
[1731738236920,0.06792735,91363.0,91361.0,0.00010949]
[1731738236921,0.06792735,91363.0,91361.0,0.26241675]
[1731738237125,0.06792735,91363.0,91361.0,0.00010949]
[1731738238632,0.11752851,91363.0,91362.0,0.19665881]
[1731738239338,0.11752851,91363.0,91362.0,0.19665213]
[1731738240940,0.11752851,91363.0,91361.0,0.00010949]
[1731738242632,0.04960116,91363.0,91361.0,0.00010949]
[1731738242841,0.49220804,91366.0,91361.0,0.00010949]
[1731738243027,0.49164803,91366.0,91361.0,0.00010949]
[1731738243336,0.3608,91366.0,91361.0,0.00010949]
[1731738243537,0.3608,91366.0,91362.0,0.19665213]
[1731738243726,0.3608,91366.0,91361.0,0.19676162]
[1731738243924,0.3608,91366.0,91362.0,0.19665213]
[1731738245333,0.3608,91366.0,91365.0,0.06792735]
[1731738245735,0.3608,91366.0,91365.0,0.26457948]
[1731738245931,0.3608,91366.0,91365.0,0.19665213]
[1731738246339,0.3608,91366.0,91365.0,0.26230726]
[1731738246543,0.3608,91366.0,91364.0,0.06792735]
[1731738246741,0.3608,91366.0,91365.0,0.32836]
[1731738247048,0.3608,91366.0,91365.0,0.64839375]
[1731738249737,0.0051,91369.0,91365.0,0.64839375]
[1731738250043,0.0051,91369.0,91366.0,0.64839375]
[1731738250237,0.0051,91369.0,91367.0,0.32003375]
[1731738250548,0.0051,91369.0,91368.0,0.32003375]
[1731738250739,0.0051,91369.0,91368.0,0.64839375]
[1731738251037,0.0051,91369.0,91368.0,0.64785311]
[1731738254742,0.0051,91369.0,91368.0,0.31949311]
[1731738254933,0.0051,91369.0,91368.0,0.64785311]
[1731738255134,0.0051,91369.0,91368.0,0.31949311]
[1731738255334,0.0051,91369.0,91368.0,0.64785311]
[1731738255534,0.0051,91369.0,91368.0,0.31949311]
[1731738255737,0.0051,91369.0,91368.0,0.64785311]
[1731738256636,0.0051,91369.0,91368.0,0.32836]
[1731738257039,0.0051,91369.0,91366.0,0.32745603]
[1731738257341,0.0051,91369.0,91367.0,0.64646154]
[1731738257546,0.0051,91369.0,91367.0,0.32745603]
[1731738257746,0.0051,91369.0,91366.0,0.32745603]
[1731738258139,0.0051,91369.0,91365.0,0.32745603]
[1731738259243,0.0051,91369.0,91364.0,0.37732238]
[1731738259437,0.0051,91369.0,91363.0,0.32745603]
[1731738259639,0.0051,91369.0,91358.0,0.3608]
[1731738259640,0.0051,91369.0,91362.0,0.32745603]
[1731738260538,0.0051,91369.0,91368.0,0.26195359]
[1731738261447,0.0051,91369.0,91365.0,0.26195359]
[1731738261751,0.0051,91369.0,91367.0,0.19647289]
[1731738261931,0.06792735,91368.0,91367.0,0.19647289]
[1731738262340,0.06792735,91368.0,91364.0,0.19647289]
[1731738262542,0.3608,91365.0,91364.0,0.19647289]
[1731738263742,0.3608,91365.0,91361.0,0.04946259]
[1731738263743,0.3608,91365.0,91363.0,0.19647289]
[1731738264244,0.0303,91364.0,91363.0,0.19647289]
[1731738264443,0.0303,91364.0,91361.0,0.00010949]
[1731738264750,0.06792735,91362.0,91361.0,0.00010949]
[1731738265638,0.15188735,91362.0,91361.0,0.00010949]
[1731738269250,0.20017841,91362.0,91361.0,0.00010949]
[1731738278845,0.13225106,91362.0,91361.0,0.00010949]
[1731738279058,0.20017841,91362.0,91361.0,0.00010949]
[1731738279358,0.08284,91362.0,91361.0,0.00010949]
[1731738281950,0.04868417,91364.0,91361.0,0.00010949]
[1731738282155,0.3608,91365.0,91361.0,0.00010949]
[1731738284457,0.3608,91365.0,91363.0,0.19647289]
[1731738285263,0.3608,91365.0,91364.0,0.0327]
[1731738286461,0.3608,91365.0,91364.0,0.36106]
[1731738287357,0.0051,91369.0,91364.0,0.683048]
[1731738287555,0.0051,91369.0,91368.0,0.06792735]
[1731738288163,0.0051,91369.0,91368.0,0.72393271]
[1731738288564,0.0051,91369.0,91368.0,0.39628735]
[1731738288966,0.0051,91369.0,91368.0,0.7175996]
[1731738289159,0.0051,91369.0,91368.0,0.78552695]
[1731738289366,0.0001282,91380.0,91368.0,0.7175996]
[1731738289570,0.0001282,91380.0,91376.0,0.33000562]
[1731738289869,0.0001282,91380.0,91377.0,0.29517827]
[1731738290376,0.0001282,91380.0,91377.0,0.0331]
[1731738292362,0.0001282,91380.0,91379.0,0.19646419]
[1731738292563,0.0001282,91380.0,91377.0,0.0331]
[1731738293061,0.0001282,91380.0,91371.0,0.19646419]
[1731738293265,0.06792735,91373.0,91370.0,0.19646419]
[1731738293462,0.06792735,91373.0,91371.0,0.19645085]
[1731738293463,0.3608,91372.0,91371.0,0.19645085]
[1731738293867,0.3608,91372.0,91369.0,0.19645085]
[1731738295577,0.3608,91372.0,91368.0,0.19645085]
[1731738296269,0.3608,91372.0,91367.0,0.19645085]
[1731738296471,0.3608,91372.0,91368.0,0.19645085]
[1731738298683,0.3608,91372.0,91369.0,0.06792735]
[1731738298870,0.0001282,91380.0,91369.0,0.19645085]
[1731738299177,0.0001282,91380.0,91368.0,0.1358547]
[1731738299178,0.0001282,91380.0,91379.0,0.06792735]
[1731738300374,0.0001282,91380.0,91379.0,0.09942735]
[1731738300971,0.0001282,91380.0,91379.0,0.0315]
[1731738301472,0.0001282,91380.0,91379.0,0.09942735]
[1731738302568,0.0001282,91380.0,91379.0,0.0315]
[1731738305776,0.0001282,91380.0,91379.0,0.42774735]
[1731738306073,0.0051,91387.0,91379.0,0.74065484]
[1731738306276,0.3608,91392.0,91386.0,0.1358547]
[1731738306478,0.3608,91392.0,91391.0,0.06792735]
[1731738306979,0.36088137,91392.0,91391.0,0.06792735]
[1731738307179,0.36088137,91392.0,91391.0,0.26415504]
[1731738307476,0.36088137,91392.0,91391.0,0.06792735]
[1731738308680,0.42880872,91392.0,91386.0,0.27902769]
[1731738308881,0.42880872,91392.0,91385.0,0.0051]
[1731738308882,0.06792735,91387.0,91385.0,0.20132769]